fUST/lending_fUST_20240912
["ID","MTS","AMOUNT","RATE_DAILY","PERIOD"]
[337785500,1726117839765,-500.0,0.00021917,2]
[337785501,1726117839775,-498.14246116,0.00021917,2]
[337785502,1726117839785,-500.0,0.00021917,2]
[337785503,1726117839796,-1605.94,0.00021917,2]
[337785504,1726117839806,-500.0,0.00021917,2]
[337785505,1726117839816,-1208.12,0.00021917,2]
[337785506,1726117839826,-500.0,0.00021917,2]
[337785507,1726117839836,-504.02585046,0.00021917,2]
[337785508,1726117839847,-500.0,0.00021917,2]
[337785509,1726117839857,-500.0,0.00021917,2]
[337785510,1726117839867,-510.92223258,0.00021917,2]
[337785511,1726117839876,-500.0,0.00021917,2]
[337785512,1726117839887,-536.14825483,0.00021917,2]
[337785513,1726117839897,-523.91051114,0.00021917,2]
[337785514,1726117839907,-500.0,0.00021917,2]
[337785515,1726117839917,-500.0,0.00021917,2]
[337785516,1726117839926,-500.0,0.00021917,2]
[337785517,1726117839936,-500.0,0.00021917,2]
[337785518,1726117839945,-500.0,0.00021917,2]
[337785519,1726117839956,-1120.32,0.00021917,2]
[337785520,1726117839965,-277.39322571,0.00021917,2]
[337785521,1726117840225,-222.60677429,0.00021917,2]
[337785522,1726117840235,-251.64495839,0.00021917,2]
[337785523,1726117840247,-598.0205773,0.00021917,2]
[337785529,1726117840377,-512.37431689,0.00021917,2]
[337785531,1726117840401,-724.95014742,0.00021917,2]
[337785533,1726117840415,-305.13595677,0.00021917,2]
[337785534,1726117840425,-500.0,0.00021917,2]
[337785535,1726117840435,-500.0,0.00021917,2]
[337785536,1726117840447,-671.73,0.00021917,2]
[337785537,1726117840457,-224.65760659,0.00021917,2]
[337785538,1726117840467,-451.90440514,0.00021917,2]
[337785539,1726117840480,-500.0,0.00021917,2]
[337785540,1726117840490,-500.0,0.00021917,2]
[337785541,1726117840501,-500.0,0.00021917,2]
[337785542,1726117840511,-504.27,0.00021917,2]
[337785543,1726117840521,-506.16393023,0.00021917,2]
[337785544,1726117840530,-500.0,0.00021917,2]
[337785545,1726117840540,-500.0,0.00021917,2]
[337785546,1726117840551,-846.7,0.00021917,2]
[337785547,1726117840560,-500.0,0.00021917,2]
[337785548,1726117840571,-500.0,0.00021917,2]
[337785549,1726117840581,-497.07445143,0.00021917,2]
[337785550,1726117840591,-500.0,0.00021917,2]
[337785551,1726117840602,-829.19,0.00021917,2]
[337785552,1726117840612,-500.0,0.00021917,2]
[337785553,1726117840622,-500.0,0.00021917,2]
[337785554,1726117840631,-525.30879091,0.00021917,2]
[337785555,1726117840642,-512.63536904,0.00021917,2]
[337785556,1726117840652,-1298.29,0.00021917,2]
[337785557,1726117840662,-500.0,0.00021917,2]
[337785558,1726117840673,-500.30966426,0.00021917,2]
[337785559,1726117840683,-500.0,0.00021917,2]
[337785560,1726117840692,-500.0,0.00021917,2]
[337785561,1726117840702,-500.0,0.00021917,2]
[337785562,1726117840712,-500.0,0.00021917,2]
[337785563,1726117840722,-500.0,0.00021917,2]
[337785564,1726117840731,-500.0,0.00021917,2]
[337785565,1726117840741,-500.0,0.00021917,2]
[337785566,1726117840751,-500.0,0.00021917,2]
[337785567,1726117840760,-500.0,0.00021917,2]
[337785568,1726117840770,-516.44227839,0.00021917,2]
[337785569,1726117840781,-500.0,0.00021917,2]
[337785570,1726117840791,-500.0,0.00021917,2]
[337785571,1726117840801,-500.0,0.00021917,2]
[337785572,1726117840811,-500.0,0.00021917,2]
[337785573,1726117840820,-500.0,0.00021917,2]
[337785574,1726117840830,-1308.4,0.00021917,2]
[337785575,1726117840839,-500.0,0.00021917,2]
[337785576,1726117840850,-500.0,0.00021917,2]
[337785577,1726117840859,-594.98,0.00021917,2]
[337785578,1726117840869,-383.81880261,0.00021917,2]
[337785579,1726117840879,-500.0,0.00021917,2]
[337785580,1726117840890,-500.0,0.00021917,2]
[337785581,1726117840899,-500.0,0.00021917,2]
[337785582,1726117840910,-536.38,0.00021917,2]
[337785583,1726117840921,-500.0,0.00021917,2]
[337785584,1726117840932,-500.0,0.00021917,2]
[337785585,1726117840944,-500.0,0.00021917,2]
[337785586,1726117840956,-516.62882971,0.00021917,2]
[337785587,1726117840967,-500.0,0.00021917,2]
[337785588,1726117840977,-508.16,0.00021917,2]
[337785589,1726117840986,-835.26,0.00021917,2]
[337785590,1726117840996,-500.0,0.00021917,2]
[337785591,1726117841005,-500.0,0.00021917,2]
[337785592,1726117841015,-500.0,0.00021917,2]
[337785593,1726117841024,-500.0,0.00021917,2]
[337785594,1726117841035,-381.63235164,0.00021917,2]
[337785595,1726117841045,-500.0,0.00021917,2]
[337785596,1726117841054,-500.0,0.00021917,2]
[337785597,1726117841065,-1195.5,0.00021917,2]
[337785598,1726117841075,-500.0,0.00021917,2]
[337785599,1726117841084,-500.0,0.00021917,2]
[337785600,1726117841094,-500.0,0.00021917,2]
[337785601,1726117841103,-500.0,0.00021917,2]
[337785602,1726117841114,-500.0,0.00021917,2]
[337785603,1726117841125,-504.886737,0.00021917,2]
[337785604,1726117841136,-500.0,0.00021917,2]
[337785605,1726117841147,-500.0,0.00021917,2]
[337785606,1726117841158,-500.0,0.00021917,2]
[337785607,1726117841168,-500.0,0.00021917,2]
[337785608,1726117841177,-614.17,0.00021917,2]
[337785609,1726117841188,-500.0,0.00021917,2]
[337785610,1726117841198,-500.0,0.00021917,2]
[337785611,1726117841210,-500.0,0.00021917,2]
[337785612,1726117841222,-516.61799226,0.00021917,2]
[337785613,1726117841232,-517.80010359,0.00021917,2]
[337785614,1726117841243,-500.0,0.00021917,2]
[337785615,1726117841252,-646.8,0.00021917,2]
[337785616,1726117841262,-802.21,0.00021917,2]
[337785617,1726117841272,-631.5,0.00021917,2]
[337785618,1726117841282,-500.0,0.00021917,2]
[337785619,1726117841292,-2322.92,0.00021917,2]
[337785620,1726117841302,-1739.33,0.00021917,2]
[337785621,1726117841311,-151.0,0.00021917,2]
[337785622,1726117841321,-500.0,0.00021917,2]
[337785623,1726117841332,-500.0,0.00021917,2]
[337785624,1726117841341,-501.25665635,0.00021917,2]
[337785625,1726117841351,-500.0,0.00021917,2]
[337785626,1726117841361,-473.00106924,0.00021917,2]
[337785627,1726117841371,-500.0,0.00021917,2]
[337785628,1726117841381,-500.0,0.00021917,2]
[337785629,1726117841390,-1831.5,0.00021917,2]
[337785630,1726117841401,-682.58,0.00021917,2]
[337785631,1726117841413,-500.0,0.00021917,2]
[337785632,1726117841423,-151.0,0.00021917,2]
[337785633,1726117841432,-500.0,0.00021917,2]
[337785634,1726117841442,-500.0,0.00021917,2]
[337785635,1726117841452,-502.15972482,0.00021917,2]
[337785636,1726117841461,-500.0,0.00021917,2]
[337785637,1726117841471,-500.0,0.00021917,2]
[337785638,1726117841481,-500.0,0.00021917,2]
[337785639,1726117841491,-500.0,0.00021917,2]
[337785640,1726117841500,-618.35,0.00021917,2]
[337785641,1726117841511,-490.37470131,0.00021917,2]
[337785642,1726117841520,-503.34619687,0.00021917,2]
[337785643,1726117841530,-500.0,0.00021917,2]
[337785644,1726117841540,-500.0,0.00021917,2]
[337785645,1726117841562,-553.86701682,0.00021917,2]
[337785646,1726117841572,-500.0,0.00021917,2]
[337785647,1726117841581,-500.0,0.00021917,2]
[337785648,1726117841591,-509.28939284,0.00021917,2]
[337785649,1726117841600,-500.0,0.00021917,2]
[337785650,1726117841609,-500.0,0.00021917,2]
[337785651,1726117841619,-500.0,0.00021917,2]
[337785652,1726117841628,-503.54136377,0.00021917,2]
[337785653,1726117841638,-500.0,0.00021917,2]
[337785654,1726117841833,-500.0,0.00021917,2]
[337785655,1726117841843,-844.45,0.00021917,2]
[337785656,1726117841853,-500.0,0.00021917,2]
[337785657,1726117841863,-504.52373986,0.00021917,2]
[337785658,1726117841872,-500.0,0.00021917,2]
[337785659,1726117841882,-500.0,0.00021917,2]
[337785660,1726117841891,-718.69,0.00021917,2]
[337785661,1726117841901,-151.0,0.00021917,2]
[337785662,1726117841910,-502.80020864,0.00021917,2]
[337785663,1726117841919,-151.0,0.00021917,2]
[337785664,1726117841929,-839.11,0.00021917,2]
[337785665,1726117841938,-500.0,0.00021917,2]
[337785666,1726117841948,-504.29242289,0.00021917,2]
[337785667,1726117841958,-500.0,0.00021917,2]
[337785668,1726117841968,-500.0,0.00021917,2]
[337785669,1726117841977,-500.0,0.00021917,2]
[337785670,1726117841987,-500.0,0.00021917,2]
[337785671,1726117841997,-500.84350394,0.00021917,2]
[337785672,1726117842006,-184.57723403,0.00021917,2]
[337785673,1726117842015,-500.0,0.00021917,2]
[337785674,1726117842025,-500.0,0.00021917,2]
[337785675,1726117842035,-500.0,0.00021917,2]
[337785676,1726117842044,-500.0,0.00021917,2]
[337785677,1726117842053,-500.0,0.00021917,2]
[337785678,1726117842063,-500.0,0.00021917,2]
[337785679,1726117842072,-393.57278461,0.00021917,2]
[337785680,1726117842082,-502.78430225,0.00021917,2]
[337785681,1726117842092,-500.0,0.00021917,2]
[337785682,1726117842101,-500.0,0.00021917,2]
[337785683,1726117842111,-500.0,0.00021917,2]
[337785684,1726117842120,-500.0,0.00021917,2]
[337785685,1726117842130,-500.0,0.00021917,2]
[337785686,1726117842141,-500.0,0.00021917,2]
[337785687,1726117842150,-500.0,0.00021917,2]
[337785688,1726117842160,-500.0,0.00021917,2]
[337785689,1726117842169,-500.0,0.00021917,2]
[337785690,1726117842178,-177.96656176,0.00021917,2]
[337785691,1726117842187,-500.0,0.00021917,2]
[337785692,1726117842208,-500.0,0.00021917,2]
[337785693,1726117842219,-500.0,0.00021917,2]
[337785694,1726117842229,-500.0,0.00021917,2]
[337785695,1726117842239,-500.0,0.00021917,2]
[337785696,1726117842250,-500.0,0.00021917,2]
[337785697,1726117842261,-1091.88,0.00021917,2]
[337785698,1726117842271,-500.0,0.00021917,2]
[337785699,1726117842281,-500.0,0.00021917,2]
[337785700,1726117842291,-500.0,0.00021917,2]
[337785701,1726117842303,-500.0,0.00021917,2]
[337785702,1726117842313,-500.0,0.00021917,2]
[337785703,1726117842324,-500.0,0.00021917,2]
[337785704,1726117842333,-500.0,0.00021917,2]
[337785705,1726117842344,-500.0,0.00021917,2]
[337785706,1726117842353,-500.0,0.00021917,2]
[337785707,1726117842363,-763.48,0.00021917,2]
[337785708,1726117842373,-500.0,0.00021917,2]
[337785709,1726117842383,-500.0,0.00021917,2]
[337785710,1726117842393,-500.0,0.00021917,2]
[337785711,1726117842405,-500.0,0.00021917,2]
[337785712,1726117842415,-500.0,0.00021917,2]
[337785713,1726117842425,-262.73228511,0.00021917,2]
[337785714,1726117842435,-500.0,0.00021917,2]
[337785715,1726117842445,-500.0,0.00021917,2]
[337785716,1726117842456,-500.0,0.00021917,2]
[337785717,1726117842466,-500.0,0.00021917,2]
[337785718,1726117842477,-500.0,0.00021917,2]
[337785719,1726117842488,-500.0,0.00021917,2]
[337785720,1726117842498,-500.0,0.00021917,2]
[337785721,1726117842507,-500.0,0.00021917,2]
[337785722,1726117842517,-285.90845234,0.00021917,2]
[337785723,1726117842527,-502.70032257,0.00021917,2]
[337785724,1726117842537,-513.15700449,0.00021917,2]
[337785725,1726117842547,-1741.85,0.00021917,2]
[337785726,1726117842557,-500.0,0.00021917,2]
[337785727,1726117842566,-500.0,0.00021917,2]
[337785728,1726117842576,-500.0,0.00021917,2]
[337785729,1726117842585,-500.0,0.00021917,2]
[337785730,1726117842595,-500.0,0.00021917,2]
[337785731,1726117842604,-1264.64,0.00021917,2]
[337785732,1726117842614,-500.0,0.00021917,2]
[337785733,1726117842625,-501.04321213,0.00021917,2]
[337785734,1726117842634,-503.34334249,0.00021917,2]
[337785735,1726117842644,-500.0,0.00021917,2]
[337785736,1726117842654,-500.0,0.00021917,2]
[337785737,1726117842663,-500.0,0.00021917,2]
[337785738,1726117842673,-500.0,0.00021917,2]
[337785739,1726117842683,-510.32209435,0.00021917,2]
[337785740,1726117842692,-500.0,0.00021917,2]
[337785741,1726117842702,-500.0,0.00021917,2]
[337785742,1726117842711,-156.79114324,0.00021917,2]
[337785743,1726117842722,-500.0,0.00021917,2]
[337785744,1726117842731,-500.0,0.00021917,2]
[337785745,1726117842741,-500.0,0.00021917,2]
[337785746,1726117842750,-500.54038114,0.00021917,2]
[337785747,1726117842759,-601.57,0.00021917,2]
[337785748,1726117842769,-502.57664126,0.00021917,2]
[337785749,1726117842779,-505.23582222,0.00021917,2]
[337785750,1726117842788,-500.0,0.00021917,2]
[337785751,1726117842798,-502.76981014,0.00021917,2]
[337785752,1726117842807,-500.0,0.00021917,2]
[337785753,1726117842821,-441.3783437,0.00021917,2]
[337785754,1726117842832,-500.0,0.00021917,2]
[337785755,1726117842843,-500.0,0.00021917,2]
[337785756,1726117842853,-500.0,0.00021917,2]
[337785757,1726117842864,-500.0,0.00021917,2]
[337785758,1726117842874,-500.0,0.00021917,2]
[337785759,1726117842884,-500.0,0.00021917,2]
[337785760,1726117842894,-500.0,0.00021917,2]
[337785761,1726117842904,-1018.33,0.00021917,2]
[337785762,1726117842914,-505.57282194,0.00021917,2]
[337785763,1726117842924,-507.2614601,0.00021917,2]
[337785764,1726117842934,-501.76966104,0.00021917,2]
[337785765,1726117842944,-829.33,0.00021917,2]
[337785766,1726117842954,-500.0,0.00021917,2]
[337785767,1726117842963,-601.11,0.00021917,2]
[337785768,1726117842973,-500.0,0.00021917,2]
[337785769,1726117842983,-500.0,0.00021917,2]
[337785770,1726117842994,-500.0,0.00021917,2]
[337785771,1726117843004,-500.0,0.00021917,2]
[337785772,1726117843013,-338.23549102,0.00021917,2]
[337785773,1726117843024,-500.0,0.00021917,2]
[337785774,1726117843035,-500.0,0.00021917,2]
[337785776,1726117843047,-521.65970303,0.00021917,2]
[337785778,1726117843057,-548.70788153,0.00021917,2]
[337785779,1726117843067,-507.63238794,0.00021917,2]
[337785781,1726117843086,-151.0,0.00021917,2]
[337785783,1726117843096,-500.0,0.00021917,2]
[337785784,1726117843106,-500.0,0.00021917,2]
[337785785,1726117843117,-500.0,0.00021917,2]
[337785787,1726117843127,-151.0,0.00021917,2]
[337785788,1726117843137,-500.0,0.00021917,2]
[337785789,1726117843147,-500.0,0.00021917,2]
[337785790,1726117843157,-501.35762791,0.00021917,2]
[337785791,1726117843167,-151.0,0.00021917,2]
[337785792,1726117843178,-500.0,0.00021917,2]
[337785793,1726117843188,-500.0,0.00021917,2]
[337785794,1726117843198,-500.0,0.00021917,2]
[337785795,1726117843208,-500.0,0.00021917,2]
[337785796,1726117843219,-500.0,0.00021917,2]
[337785797,1726117843230,-500.0,0.00021917,2]
[337785798,1726117843241,-500.0,0.00021917,2]
[337785799,1726117843252,-502.84699057,0.00021917,2]
[337785800,1726117843263,-677.32,0.00021917,2]
[337785801,1726117843277,-500.0,0.00021917,2]
[337785802,1726117843287,-500.0,0.00021917,2]
[337785803,1726117843299,-500.0,0.00021917,2]
[337785804,1726117843308,-1178.69,0.00021917,2]
[337785805,1726117843318,-500.0,0.00021917,2]
[337785806,1726117843328,-473.63739489,0.00021917,2]
[337785807,1726117843338,-1866.56,0.00021917,2]
[337785808,1726117843348,-500.0,0.00021917,2]
[337785809,1726117843358,-500.0,0.00021917,2]
[337785810,1726117843368,-500.0,0.00021917,2]
[337785811,1726117843379,-500.0,0.00021917,2]
[337785812,1726117843388,-500.0,0.00021917,2]
[337785813,1726117843398,-500.0,0.00021917,2]
[337785814,1726117843412,-151.0,0.00021917,2]
[337785815,1726117843422,-500.0,0.00021917,2]
[337785816,1726117843432,-500.0,0.00021917,2]
[337785817,1726117843442,-500.0,0.00021917,2]
[337785818,1726117843453,-500.0,0.00021917,2]
[337785819,1726117843462,-151.0,0.00021917,2]
[337785820,1726117843471,-500.0,0.00021917,2]
[337785821,1726117843481,-500.0,0.00021917,2]
[337785822,1726117843491,-500.0,0.00021917,2]
[337785823,1726117843502,-885.16,0.00021917,2]
[337785824,1726117843512,-500.0,0.00021917,2]
[337785825,1726117843521,-500.0,0.00021917,2]
[337785826,1726117843532,-500.0,0.00021917,2]
[337785827,1726117843542,-500.0,0.00021917,2]
[337785828,1726117843552,-779.66,0.00021917,2]
[337785829,1726117843562,-535.08,0.00021917,2]
[337785830,1726117843571,-500.0,0.00021917,2]
[337785831,1726117843581,-500.0,0.00021917,2]
[337785832,1726117843591,-504.24803342,0.00021917,2]
[337785833,1726117843602,-501.56409171,0.00021917,2]
[337785834,1726117843612,-500.0,0.00021917,2]
[337785835,1726117843621,-500.0,0.00021917,2]
[337785836,1726117843631,-500.0,0.00021917,2]
[337785837,1726117843641,-1038.54,0.00021917,2]
[337785838,1726117843651,-1324.83,0.00021917,2]
[337785839,1726117843661,-483.26872439,0.00021917,2]
[337785840,1726117843671,-503.98679247,0.00021917,2]
[337785841,1726117843681,-500.0,0.00021917,2]
[337785842,1726117843691,-505.80811296,0.00021917,2]
[337785843,1726117843701,-500.0,0.00021917,2]
[337785844,1726117843711,-170.53035797,0.00021917,2]
[337785845,1726117843721,-367.21276475,0.00021917,2]
[337785846,1726117843731,-500.0,0.00021917,2]
[337785847,1726117843740,-500.0,0.00021917,2]
[337785848,1726117843750,-500.0,0.00021917,2]
[337785849,1726117843760,-500.70365415,0.00021917,2]
[337785850,1726117843770,-500.0,0.00021917,2]
[337785851,1726117843780,-504.21309115,0.00021917,2]
[337785852,1726117843791,-500.0,0.00021917,2]
[337785853,1726117843801,-513.67154487,0.00021917,2]
[337785854,1726117843812,-500.0,0.00021917,2]
[337785855,1726117843821,-151.0,0.00021917,2]
[337785856,1726117843831,-500.0,0.00021917,2]
[337785857,1726117843840,-500.0,0.00021917,2]
[337785858,1726117843850,-151.0,0.00021917,2]
[337785859,1726117843860,-500.0,0.00021917,2]
[337785860,1726117843870,-500.0,0.00021917,2]
[337785861,1726117843880,-1261.16,0.00021917,2]
[337785862,1726117843890,-500.93809778,0.00021917,2]
[337785863,1726117843899,-500.0,0.00021917,2]
[337785864,1726117843909,-500.0,0.00021917,2]
[337785865,1726117843918,-655.03,0.00021917,2]
[337785866,1726117843928,-500.0,0.00021917,2]
[337785867,1726117843937,-858.75,0.00021917,2]
[337785868,1726117843947,-500.0,0.00021917,2]
[337785869,1726117843956,-500.0,0.00021917,2]
[337785870,1726117843965,-500.0,0.00021917,2]
[337785871,1726117843975,-1051.0,0.00021917,2]
[337785872,1726117843984,-500.0,0.00021917,2]
[337785873,1726117843994,-566.53,0.00021917,2]
[337785874,1726117844003,-500.0,0.00021917,2]
[337785875,1726117844012,-500.0,0.00021917,2]
[337785876,1726117844022,-514.89118887,0.00021917,2]
[337785878,1726117844032,-500.72930063,0.00021917,2]
[337785879,1726117844042,-503.50902903,0.00021917,2]
[337785881,1726117844052,-500.0,0.00021917,2]
[337785882,1726117844062,-505.25925374,0.00021917,2]
[337785883,1726117844071,-500.0,0.00021917,2]
[337785884,1726117844081,-180.82810532,0.00021917,2]
[337785885,1726117844090,-501.77922434,0.00021917,2]
[337785886,1726117844101,-500.0,0.00021917,2]
[337785887,1726117844111,-500.0,0.00021917,2]
[337785888,1726117844120,-500.0,0.00021917,2]
[337785889,1726117844129,-518.90428555,0.00021917,2]
[337785890,1726117844140,-537.56585578,0.00021917,2]
[337785891,1726117844149,-500.0,0.00021917,2]
[337785892,1726117844160,-862.42,0.00021917,2]
[337785893,1726117844169,-344.76624333,0.00021917,2]
[337785894,1726117844179,-500.0,0.00021917,2]
[337785895,1726117844188,-1329.92,0.00021917,2]
[337785896,1726117844198,-823.05,0.00021917,2]
[337785897,1726117844207,-500.0,0.00021917,2]
[337785898,1726117844217,-502.99622555,0.00021917,2]
[337785899,1726117844228,-973.06,0.00021917,2]
[337785900,1726117844239,-1973.91,0.00021917,2]
[337785901,1726117844250,-1107.99,0.00021917,2]
[337785902,1726117844261,-500.0,0.00021917,2]
[337785903,1726117844271,-486.05285791,0.00021917,2]
[337785904,1726117844280,-500.0,0.00021917,2]
[337785905,1726117844290,-500.0,0.00021917,2]
[337785906,1726117844301,-521.74,0.00021917,2]
[337785907,1726117844310,-500.0,0.00021917,2]
[337785908,1726117844320,-500.0,0.00021917,2]
[337785909,1726117844398,-500.0,0.00021917,2]
[337785910,1726117844410,-500.0,0.00021917,2]
[337785911,1726117844419,-1808.78,0.00021917,2]
[337785912,1726117844428,-500.0,0.00021917,2]
[337785913,1726117844437,-500.0,0.00021917,2]
[337785914,1726117844446,-500.0,0.00021917,2]
[337785915,1726117844457,-21987.48,0.00021917,2]
[337785916,1726117844467,-537.61,0.00021917,2]
[337785917,1726117844476,-500.0,0.00021917,2]
[337785918,1726117844492,-500.0,0.00021917,2]
[337785919,1726117844502,-503.00755211,0.00021917,2]
[337785920,1726117844512,-500.0,0.00021917,2]
[337785921,1726117844522,-500.0,0.00021917,2]
[337785922,1726117844531,-510.73912709,0.00021917,2]
[337785923,1726117844540,-503.58237892,0.00021917,2]
[337785924,1726117844552,-1566.91,0.00021917,2]
[337785925,1726117844561,-1032.85,0.00021917,2]
[337785926,1726117844571,-500.0,0.00021917,2]
[337785927,1726117844579,-500.0,0.00021917,2]
[337785928,1726117844589,-1012.07,0.00021917,2]
[337785929,1726117844598,-500.0,0.00021917,2]
[337785930,1726117844607,-500.0,0.00021917,2]
[337785931,1726117844616,-500.0,0.00021917,2]
[337785932,1726117844625,-200.0,0.00021917,2]
[337785933,1726117844634,-500.0,0.00021917,2]
[337785934,1726117844643,-501.58225505,0.00021917,2]
[337785935,1726117844653,-500.0,0.00021917,2]
[337785936,1726117844662,-500.0,0.00021917,2]
[337785937,1726117844671,-308.3565083,0.00021917,2]
[337785938,1726117844681,-500.81888714,0.00021917,2]
[337785939,1726117844690,-500.0,0.00021917,2]
[337785940,1726117844700,-976.27,0.00021917,2]
[337785941,1726117844709,-500.0,0.00021917,2]
[337785942,1726117844718,-723.52,0.00021917,2]
[337785943,1726117844729,-500.0,0.00021917,2]
[337785944,1726117844739,-500.0,0.00021917,2]
[337785945,1726117844750,-1238.32,0.00021917,2]
[337785946,1726117844762,-154.363797,0.00021917,2]
[337785947,1726117844771,-500.0,0.00021917,2]
[337785948,1726117844781,-500.0,0.00021917,2]
[337785949,1726117844790,-500.0,0.00021917,2]
[337785950,1726117844800,-1485.95,0.00021917,2]
[337785951,1726117844810,-1013.82,0.00021917,2]
[337785952,1726117844820,-500.0,0.00021917,2]
[337785953,1726117844832,-500.0,0.00021917,2]
[337785954,1726117844842,-500.0,0.00021917,2]
[337785955,1726117844853,-500.0,0.00021917,2]
[337785956,1726117844865,-500.0,0.00021917,2]
[337785957,1726117844876,-1514.12,0.00021917,2]
[337785958,1726117844887,-500.0,0.00021917,2]
[337785959,1726117844897,-500.0,0.00021917,2]
[337785960,1726117844909,-503.08898454,0.00021917,2]
[337785961,1726117844919,-500.0,0.00021917,2]
[337785962,1726117844929,-500.0,0.00021917,2]
[337785963,1726117844940,-500.0,0.00021917,2]
[337785964,1726117844950,-508.75518023,0.00021917,2]
[337785965,1726117844959,-562.65,0.00021917,2]
[337785966,1726117844968,-500.0,0.00021917,2]
[337785967,1726117844977,-500.0,0.00021917,2]
[337785968,1726117844986,-2342.51,0.00021917,2]
[337785969,1726117844995,-500.56302159,0.00021917,2]
[337785970,1726117845005,-302.1066974,0.00021917,2]
[337785971,1726117845642,-197.8933026,0.00021917,2]
[337785972,1726117845655,-500.0,0.00021917,2]
[337785973,1726117845667,-502.93006318,0.00021917,2]
[337785974,1726117845678,-502.19304392,0.00021917,2]
[337785975,1726117845688,-500.0,0.00021917,2]
[337785976,1726117845698,-500.0,0.00021917,2]
[337785978,1726117845707,-500.0,0.00021917,2]
[337785979,1726117845716,-500.0,0.00021917,2]
[337785980,1726117845726,-216.35083756,0.00021917,2]
[337785981,1726117845737,-500.0,0.00021917,2]
[337785982,1726117845747,-544.39,0.00021917,2]
[337785983,1726117845756,-504.3176939,0.00021917,2]
[337785984,1726117845768,-500.0,0.00021917,2]
[337785985,1726117845777,-151.0,0.00021917,2]
[337785986,1726117845787,-500.0,0.00021917,2]
[337785987,1726117845796,-734.28,0.00021917,2]
[337785988,1726117845805,-500.0,0.00021917,2]
[337785989,1726117845814,-447.84578428,0.00021917,2]
[337785991,1726117845824,-500.0,0.00021917,2]
[337785992,1726117845834,-344.17633184,0.00021917,2]
[337785993,1726117845844,-190.026946,0.00021917,2]
[337785994,1726117845853,-190.026946,0.00021917,2]
[337785995,1726117845863,-500.0,0.00021917,2]
[337785996,1726117845873,-500.0,0.00021917,2]
[337785997,1726117845882,-1062.15,0.00021917,2]
[337785998,1726117845891,-190.026946,0.00021917,2]
[337785999,1726117845900,-500.0,0.00021917,2]
[337786000,1726117845909,-500.0,0.00021917,2]
[337786001,1726117845918,-190.026946,0.00021917,2]
[337786002,1726117845928,-500.0,0.00021917,2]
[337786003,1726117845939,-500.0,0.00021917,2]
[337786004,1726117845950,-500.0,0.00021917,2]
[337786005,1726117845961,-322.87420927,0.00021917,2]
[337786006,1726117845972,-1353.58,0.00021917,2]
[337786007,1726117845982,-1141.94,0.00021917,2]
[337786008,1726117845991,-239.98904952,0.00021917,2]
[337786009,1726117846001,-2154.29,0.00021917,2]
[337786010,1726117846010,-500.0,0.00021917,2]
[337786011,1726117846021,-500.0,0.00021917,2]
[337786012,1726117846031,-1280.46,0.00021917,2]
[337786013,1726117846042,-501.01141681,0.00021917,2]
[337786014,1726117846055,-500.0,0.00021917,2]
[337786015,1726117846066,-500.0,0.00021917,2]